lending/lending_fUSD_20250917
["ID","MTS","AMOUNT","RATE_DAILY","PERIOD"]
[385879805,1758087050102,-151.0,0.0003013,7]
[385879806,1758087050111,-151.0,0.00031278,7]
[385879807,1758087050120,-151.0,0.00031278,7]
[385879808,1758087050129,-151.0,0.00032064,7]
[385879809,1758087050138,-151.0,0.000327,7]
[385879810,1758087050147,-1852.42479633,0.000329,12]
[385879811,1758087050157,-598.41525263,0.000329,2]
[385879812,1758087050166,-474.04220739,0.000329,2]
[385879813,1758087050175,-150.0,0.00032903,2]
[385879814,1758087050185,-479.0,0.0003293,2]
[385879815,1758087050195,-500.0,0.00032955,2]
[385879816,1758087050204,-456.0,0.00032955,2]
[385879817,1758087050213,-1897.97034423,0.00032955,2]
[385879818,1758087050338,-284.52628,0.00032955,2]
[385879826,1758087629073,200.26416688,0.00018407,2]
[385879830,1758087860526,166.36,0.00014462,2]
[385879831,1758087860715,128.39883013,0.00016872,2]
[385879832,1758087860745,37.96116987,0.00016872,2]
[385879833,1758087861341,166.36,0.00019283,2]
[385879836,1758088018747,268.64599327,0.00030136,120]
[385879841,1758088232021,-166.36,0.00021693,2]
[385879842,1758088232030,-166.36,0.00024103,2]
[385879843,1758088232039,-548.0,0.00024302,2]
[385879844,1758088232048,-408.69568941,0.00024302,2]
[385879845,1758088232077,-139.30431059,0.00024302,2]
[385879846,1758088232087,-548.0,0.00024302,2]
[385879847,1758088232096,-158.60421919,0.00024793,2]
[385879848,1758088232105,-1200.0,0.00024892,2]
[385879849,1758088232115,-500.0,0.00024893,2]
[385879850,1758088232123,-500.0,0.00024893,2]
[385879851,1758088232132,-500.0,0.00024893,2]
[385879852,1758088232141,-338.8468307,0.00024893,2]
[385879853,1758088232150,-500.0,0.00024893,2]
[385879854,1758088232159,-500.0,0.00024893,2]
[385879855,1758088232169,-249.86134877,0.00024893,2]
[385879856,1758088232178,-500.0,0.00024893,2]
[385879857,1758088232187,-11015.38329075,0.000249,2]
[385879858,1758088232210,-43.99237079,0.000249,2]
[385879859,1758088232219,-166.36,0.00026514,2]
[385879860,1758088232228,-246.13017721,0.00026976,2]
[385879861,1758088232238,-1735.8569532,0.00026977,2]
[385879862,1758088232273,-1459.50761529,0.00026977,2]
[385879863,1758088232284,-16804.62543151,0.00026977,2]
[385879864,1758088232294,-1680.0,0.00027092,2]
[385879865,1758088232304,-565.0,0.00027137,2]
[385879866,1758088232313,-521.35826534,0.000276,2]
[385879876,1758088232422,-469.299143,0.000276,2]
[385879878,1758088232433,-250.8,0.000276,2]
[385880439,1758088237941,-699.65993792,0.000276,2]
[385880445,1758088238052,-715.84337084,0.000276,2]
[385880982,1758088243154,-398.74535327,0.00024301,2]
[385880984,1758088243164,-23987.7253929,0.000276,2]
[385880986,1758088243174,-166.79,0.00027608,2]
[385880988,1758088243183,-666.0,0.00028071,3]
[385880990,1758088243192,-200.0,0.00028138,2]
[385880992,1758088243202,-151.0,0.00028245,2]
[385880994,1758088243211,-200.0,0.0002828,2]
[385880996,1758088243220,-2093.0,0.00028422,2]
[385880998,1758088243230,-473.62,0.00028443,2]
[385881000,1758088243239,-198.7,0.00028534,3]
[385881002,1758088243248,-255.25,0.00028581,2]
[385881004,1758088243257,-160.9,0.00028766,2]
[385881006,1758088243266,-166.36,0.00028924,2]
[385881008,1758088243275,-205.71,0.00028963,2]
[385881010,1758088243284,-150.0,0.00029001,7]
[385881012,1758088243293,-2066.8,0.00029015,7]
[385881014,1758088243303,-171.11877924,0.00029022,7]
[385881016,1758088243312,-198.5530008,0.00029022,7]
[385881018,1758088243321,-150.0,0.00029022,7]
[385881020,1758088243330,-150.73005377,0.00029022,7]
[385881022,1758088243339,-150.0,0.00029022,7]
[385881024,1758088243348,-151.06040012,0.00029022,7]
[385881025,1758088243357,-150.00000001,0.00029022,7]
[385881027,1758088243367,-180.5127242,0.00029022,7]
[385881029,1758088243376,-150.0,0.00029022,7]
[385881030,1758088243385,-150.0,0.00029022,7]
[385881032,1758088243394,-150.0,0.00029022,7]
[385881034,1758088243403,-4323.17,0.00029187,2]
[385881036,1758088243412,-850.0,0.00029334,2]
[385881037,1758088243422,-163.2,0.00029423,2]
[385881039,1758088243432,-250.0,0.0002947,2]
[385881041,1758088243441,-2351.0,0.00029485,2]
[385881042,1758088243450,-516.07479255,0.00029763,2]
[385881044,1758088243460,-160.0,0.00029763,2]
[385881046,1758088243470,-213.18994792,0.00029764,2]
[385881047,1758088243479,-162.47,0.0002988,30]
[385881049,1758088243488,-545.26,0.0002991,2]
[385881051,1758088243497,-2751.0,0.00030089,2]
[385881052,1758088243507,-150.0,0.00030106,2]
[385881054,1758088243516,-283.24754424,0.00030108,2]
[385881056,1758088243525,-361.00177207,0.0003011,2]
[385881058,1758088243534,-438.7559999,0.00030112,2]
[385881059,1758088243543,-516.51022773,0.00030115,2]
[385881061,1758088243552,-594.26445556,0.00030117,2]
[385881063,1758088243561,-672.01868339,0.00030119,2]
[385881065,1758088243570,-749.77291123,0.00030121,2]
[385881066,1758088243579,-827.52713906,0.00030124,2]
[385881068,1758088243588,-2464.1,0.00030126,2]
[385881070,1758088243598,-905.2813669,0.00030126,2]
[385881072,1758088243607,-718.58,0.00030128,2]
[385881074,1758088243616,-400.0,0.00030136,7]
[385881075,1758088243625,-400.0,0.00030136,7]
[385881077,1758088243635,-400.0,0.00030136,7]
[385881079,1758088243644,-414.32699185,0.00030136,7]
[385881081,1758088243653,-400.0,0.00030136,7]
[385881082,1758088243662,-400.0,0.00030136,7]
[385881084,1758088243671,-400.0,0.00030136,7]
[385881086,1758088243680,-400.0,0.00030136,7]
[385881087,1758088243690,-400.0,0.00030136,7]
[385881089,1758088243699,-400.0,0.00030136,7]
[385881091,1758088243708,-403.34,0.00030136,7]
[385881092,1758088243717,-998.87,0.00030136,7]
[385881094,1758088243727,-400.0,0.00030136,7]
[385881096,1758088243736,-400.0,0.00030136,7]
[385881098,1758088243745,-400.0,0.00030136,7]
[385881100,1758088243755,-400.0,0.00030136,7]
[385881102,1758088243764,-515.76101176,0.00030136,7]
[385881103,1758088243773,-492.04,0.00030136,7]
[385881105,1758088243783,-400.0,0.00030136,7]
[385881107,1758088243792,-400.0,0.00030136,7]
[385881108,1758088243801,-3062.32,0.00030136,7]
[385881110,1758088243811,-400.0,0.00030136,7]
[385881112,1758088243821,-817.82,0.00030136,7]
[385881114,1758088243834,-400.0,0.00030136,7]
[385881116,1758088243844,-402.43615652,0.00030136,7]
[385881117,1758088243853,-400.0,0.00030136,7]
[385881119,1758088243863,-400.0,0.00030136,7]
[385881121,1758088243872,-400.0,0.00030136,7]
[385881123,1758088243881,-400.0,0.00030136,7]
[385881125,1758088243891,-400.0,0.00030136,7]
[385881127,1758088243900,-400.0,0.00030136,7]
[385881129,1758088243911,-400.0,0.00030136,7]
[385881130,1758088243921,-400.0,0.00030136,7]
[385881132,1758088243930,-550.74,0.00030136,7]
[385881134,1758088243940,-1480.39,0.00030136,7]
[385881136,1758088243950,-400.0,0.00030136,7]
[385881138,1758088243959,-400.0,0.00030136,7]
[385881140,1758088243968,-413.66149707,0.00030136,7]
[385881141,1758088243977,-400.0,0.00030136,7]
[385881143,1758088243987,-403.29978797,0.00030136,7]
[385881145,1758088243996,-400.0,0.00030136,7]
[385881147,1758088244006,-400.0,0.00030136,7]
[385881149,1758088244015,-400.0,0.00030136,7]
[385881150,1758088244023,-400.0,0.00030136,7]
[385881152,1758088244032,-442.78,0.00030136,7]
[385881154,1758088244041,-400.0,0.00030136,7]
[385881156,1758088244050,-489.98,0.00030136,7]
[385881158,1758088244059,-400.0,0.00030136,7]
[385881159,1758088244068,-400.0,0.00030136,7]
[385881161,1758088244078,-400.0,0.00030136,7]
[385881163,1758088244087,-400.0,0.00030136,7]
[385881165,1758088244097,-611.42,0.00030136,7]
[385881167,1758088244107,-408.53587416,0.00030136,7]
[385881169,1758088244115,-400.0,0.00030136,7]
[385881170,1758088244124,-400.0,0.00030136,7]
[385881172,1758088244134,-400.0,0.00030136,7]
[385881174,1758088244143,-406.69823401,0.00030136,7]
[385881176,1758088244153,-400.0,0.00030136,7]
[385881178,1758088244163,-500.0,0.00030136,7]
[385881180,1758088244173,-500.0,0.00030136,7]
[385881181,1758088244182,-500.0,0.00030136,7]
[385881183,1758088244191,-500.0,0.00030136,7]
[385881185,1758088244201,-400.0,0.00030136,7]
[385881187,1758088244210,-400.0,0.00030136,7]
[385881189,1758088244219,-400.0,0.00030136,7]
[385881190,1758088244228,-400.0,0.00030136,7]
[385881192,1758088244237,-460.07,0.00030136,7]
[385881194,1758088244246,-400.0,0.00030136,7]
[385881196,1758088244255,-400.0,0.00030136,7]
[385881198,1758088244265,-400.0,0.00030136,7]
[385881200,1758088244274,-404.98822189,0.00030136,7]
[385881201,1758088244283,-400.0,0.00030136,7]
[385881203,1758088244292,-400.0,0.00030136,7]
[385881205,1758088244301,-409.19585072,0.00030136,7]
[385881207,1758088244310,-400.0,0.00030136,7]
[385881209,1758088244320,-400.0,0.00030136,7]
[385881210,1758088244329,-400.0,0.00030136,7]
[385881212,1758088244338,-576.44,0.00030136,7]
[385881214,1758088244347,-400.0,0.00030136,7]
[385881216,1758088244356,-400.0,0.00030136,7]
[385881217,1758088244366,-402.9403972,0.00030136,7]
[385881219,1758088244375,-400.0,0.00030136,7]
[385881221,1758088244384,-404.53627312,0.00030136,7]
[385881223,1758088244394,-400.0,0.00030136,7]
[385881225,1758088244402,-400.0,0.00030136,7]
[385881226,1758088244412,-400.0,0.00030136,7]
[385881228,1758088244422,-400.0,0.00030136,7]
[385881230,1758088244432,-492.5,0.00030136,7]
[385881232,1758088244442,-400.0,0.00030136,7]
[385881234,1758088244452,-400.0,0.00030136,7]
[385881236,1758088244461,-413.2553083,0.00030136,7]
[385881238,1758088244470,-669.46,0.00030136,7]
[385881239,1758088244480,-400.0,0.00030136,7]
[385881241,1758088244490,-400.0,0.00030136,7]
[385881243,1758088244499,-403.08393534,0.00030136,7]
[385881245,1758088244508,-407.47183524,0.00030136,7]
[385881247,1758088244518,-400.0,0.00030136,7]
[385881248,1758088244527,-555.49,0.00030136,7]
[385881249,1758088244535,-402.79406331,0.00030136,7]
[385881250,1758088244544,-400.0,0.00030136,7]
[385881251,1758088244553,-400.0,0.00030136,7]
[385881252,1758088244562,-400.0,0.00030136,7]
[385881253,1758088244571,-566.65,0.00030136,7]
[385881254,1758088244580,-462.55,0.00030136,7]
[385881255,1758088244589,-400.0,0.00030136,7]
[385881256,1758088244598,-400.0,0.00030136,7]
[385881257,1758088244607,-400.0,0.00030136,7]
[385881258,1758088244616,-405.25080587,0.00030136,7]
[385881259,1758088244625,-400.0,0.00030136,7]
[385881260,1758088244634,-400.0,0.00030136,7]
[385881261,1758088244643,-156.34083695,0.00030136,7]
[385881262,1758088244652,-403.00415359,0.00030136,7]
[385881264,1758088244662,-400.0,0.00030136,7]
[385881266,1758088244671,-400.0,0.00030136,7]
[385881268,1758088244681,-400.0,0.00030136,7]
[385881270,1758088244690,-163.34901769,0.00030136,7]
[385881271,1758088244700,-400.0,0.00030136,7]
[385881272,1758088244709,-406.48987433,0.00030136,7]
[385881273,1758088244718,-400.0,0.00030136,7]
[385881274,1758088244727,-954.22,0.00030136,7]
[385881275,1758088244737,-663.37,0.00030136,7]
[385881276,1758088244747,-400.0,0.00030136,7]
[385881277,1758088244756,-400.0,0.00030136,7]
[385881278,1758088244765,-400.0,0.00030136,7]
[385881279,1758088244774,-952.6,0.00030136,7]
[385881280,1758088244783,-400.0,0.00030136,7]
[385881281,1758088244793,-623.34,0.00030136,7]
[385881282,1758088244801,-400.0,0.00030136,7]
[385881283,1758088244811,-499.2,0.00030136,7]
[385881284,1758088244821,-459.97,0.00030136,7]
[385881285,1758088244832,-400.0,0.00030136,7]
[385881286,1758088244842,-400.0,0.00030136,7]
[385881287,1758088244851,-400.0,0.00030136,7]
[385881288,1758088244860,-400.0,0.00030136,7]
[385881289,1758088244871,-554.05,0.00030136,7]
[385881290,1758088244881,-408.27,0.00030136,7]
[385881291,1758088244890,-2301.47,0.00030136,7]
[385881292,1758088244900,-400.0,0.00030136,7]
[385881293,1758088244909,-400.0,0.00030136,7]
[385881294,1758088244919,-400.0,0.00030136,7]
[385881295,1758088244928,-400.0,0.00030136,7]
[385881296,1758088244937,-400.0,0.00030136,7]
[385881297,1758088244946,-400.0,0.00030136,7]
[385881298,1758088244956,-500.0,0.00030136,7]
[385881299,1758088244965,-500.0,0.00030136,7]
[385881300,1758088244974,-400.0,0.00030136,7]
[385881301,1758088244983,-500.0,0.00030136,7]
[385881302,1758088244993,-531.04755692,0.00030136,7]
[385881304,1758088245003,-400.0,0.00030136,7]
[385881306,1758088245012,-409.41403345,0.00030136,7]
[385881308,1758088245021,-400.0,0.00030136,7]
[385881309,1758088245030,-400.0,0.00030136,7]
[385881311,1758088245040,-400.0,0.00030136,7]
[385881314,1758088245049,-3668.07,0.00030136,7]
[385881315,1758088245058,-400.0,0.00030136,7]
[385881317,1758088245067,-400.0,0.00030136,7]
[385881319,1758088245077,-416.43,0.00030136,7]
[385881321,1758088245087,-400.87287004,0.00030136,7]
[385881323,1758088245096,-400.0,0.00030136,7]
[385881325,1758088245106,-400.0,0.00030136,7]
[385881327,1758088245115,-400.0,0.00030136,7]
[385881329,1758088245124,-400.0,0.00030136,7]
[385881331,1758088245134,-400.0,0.00030136,7]
[385881333,1758088245143,-400.0,0.00030136,7]
[385881335,1758088245152,-402.97308482,0.00030136,7]
[385881337,1758088245164,-406.17162989,0.00030136,7]
[385881339,1758088245174,-400.0,0.00030136,7]
[385881341,1758088245184,-400.0,0.00030136,7]
[385881343,1758088245193,-408.9362754,0.00030136,7]
[385881345,1758088245203,-500.0,0.00030136,7]
[385881347,1758088245212,-400.0,0.00030136,7]
[385881348,1758088245223,-400.0,0.00030136,7]
[385881349,1758088245232,-421.25,0.00030136,7]
[385881350,1758088245242,-400.0,0.00030136,7]
[385881351,1758088245251,-400.0,0.00030136,7]
[385881353,1758088245261,-405.29927253,0.00030136,7]
[385881355,1758088245270,-400.0,0.00030136,7]
[385881357,1758088245280,-400.0,0.00030136,7]
[385881359,1758088245290,-400.0,0.00030136,7]
[385881361,1758088245299,-206.6502344,0.00030136,7]
[385881438,1758088246906,-193.3497656,0.00030136,7]
[385881439,1758088246915,-400.0,0.00030136,7]
[385881440,1758088246925,-324.01588211,0.00030136,7]
[385881441,1758088246934,-406.25811645,0.00030136,7]
[385881442,1758088246944,-400.0,0.00030136,7]
[385881443,1758088246954,-411.62225727,0.00030136,7]
[385881444,1758088246963,-400.0,0.00030136,7]
[385881445,1758088246973,-405.51482668,0.00030136,7]
[385881446,1758088246982,-130.16404241,0.00030136,7]
[385881447,1758088246998,-274.99795421,0.00030136,7]
[385881448,1758088247007,-400.0,0.00030136,7]
[385881449,1758088247016,-404.70088905,0.00030136,7]
[385881450,1758088247025,-400.0,0.00030136,7]
[385881451,1758088247034,-400.0,0.00030136,7]
[385881452,1758088247044,-415.75965843,0.00030136,7]
[385881453,1758088247053,-403.80068619,0.00030136,7]
[385881454,1758088247063,-400.0,0.00030136,7]
[385881455,1758088247072,-400.0,0.00030136,7]
[385881456,1758088247082,-1229.08,0.00030136,7]
[385881457,1758088247091,-400.0,0.00030136,7]
[385881458,1758088247100,-408.85548132,0.00030136,7]
[385881459,1758088247109,-400.0,0.00030136,7]
[385881460,1758088247119,-406.54832088,0.00030136,7]
[385881461,1758088247128,-400.0,0.00030136,7]
[385881462,1758088247138,-400.0,0.00030136,7]
[385881463,1758088247148,-400.0,0.00030136,7]
[385881464,1758088247157,-400.0,0.00030136,7]
[385881465,1758088247166,-404.03715322,0.00030136,7]
[385881466,1758088247176,-400.0,0.00030136,7]
[385881467,1758088247186,-400.0,0.00030136,7]
[385881468,1758088247195,-504.71232462,0.00030136,7]
[385881469,1758088247204,-400.0,0.00030136,7]
[385881470,1758088247213,-400.0,0.00030136,7]
[385881471,1758088247222,-161.85607636,0.00030136,7]
[385881472,1758088247231,-400.0,0.00030136,7]
[385881473,1758088247241,-408.35262692,0.00030136,7]
[385881474,1758088247250,-405.50589506,0.00030136,7]
[385881475,1758088247259,-400.0,0.00030136,7]
[385881476,1758088247268,-515.31,0.00030136,7]
[385881477,1758088247277,-186.58620117,0.00030136,7]
[385881478,1758088247294,-213.41379883,0.00030136,7]
[385881479,1758088247303,-574.77,0.00030136,7]
[385881480,1758088247312,-400.0,0.00030136,7]
[385881481,1758088247321,-400.0,0.00030136,7]
[385881482,1758088247330,-408.42710097,0.00030136,7]
[385881483,1758088247341,-405.40205122,0.00030136,7]
[385881484,1758088247350,-400.0,0.00030136,7]
[385881485,1758088247360,-151.93951973,0.00030136,7]
[385881486,1758088247369,-400.0,0.00030136,7]
[385881487,1758088247379,-400.0,0.00030136,7]
[385881488,1758088247388,-411.18086987,0.00030136,7]
[385881489,1758088247399,-400.0,0.00030136,7]
[385881490,1758088247408,-400.0,0.00030136,7]
[385881491,1758088247418,-400.0,0.00030136,7]
[385881492,1758088247429,-396.53493219,0.00030136,7]
[385881493,1758088247439,-404.84308362,0.00030136,7]
[385881494,1758088247448,-400.0,0.00030136,7]
[385881495,1758088247457,-409.46712555,0.00030136,7]
[385881496,1758088247467,-403.05376455,0.00030136,7]
[385881497,1758088247476,-20.96772347,0.00030136,7]
[385881498,1758088247488,-479.03227653,0.00030136,7]
[385881499,1758088247498,-500.0,0.00030136,7]
[385881500,1758088247507,-500.0,0.00030136,7]
[385881501,1758088247516,-500.0,0.00030136,7]
[385881502,1758088247525,-400.0,0.00030136,7]
[385881503,1758088247534,-400.0,0.00030136,7]
[385881504,1758088247543,-400.0,0.00030136,7]
[385881505,1758088247552,-400.0,0.00030136,7]
[385881506,1758088247561,-400.0,0.00030136,7]
[385881507,1758088247570,-400.0,0.00030136,7]
[385881508,1758088247579,-400.0,0.00030136,7]
[385881509,1758088247589,-400.0,0.00030136,7]
[385881510,1758088247598,-400.0,0.00030136,7]
[385881511,1758088247607,-404.13869256,0.00030136,7]
[385881512,1758088247616,-400.0,0.00030136,7]
[385881513,1758088247625,-400.0,0.00030136,7]
[385881514,1758088247634,-406.77141455,0.00030136,7]
[385881515,1758088247643,-400.0,0.00030136,7]
[385881516,1758088247652,-400.0,0.00030136,7]
[385881517,1758088247661,-400.0,0.00030136,7]
[385881518,1758088247671,-404.59899063,0.00030136,7]
[385881519,1758088247680,-400.0,0.00030136,7]
[385881520,1758088247690,-402.96711169,0.00030136,7]
[385881521,1758088247699,-322.40196343,0.00030136,7]
[385881522,1758088247708,-400.0,0.00030136,7]
[385881523,1758088247717,-450.29,0.00030136,7]
[385881524,1758088247726,-500.0,0.00030136,7]
[385881525,1758088247736,-503.5223464,0.00030136,7]
[385881526,1758088247745,-400.0,0.00030136,7]
[385881527,1758088247755,-400.0,0.00030136,7]
[385881528,1758088247765,-1145.08,0.00030136,7]
[385881529,1758088247775,-400.0,0.00030136,7]
[385881530,1758088247784,-400.0,0.00030136,7]
[385881531,1758088247793,-323.75432386,0.00030136,7]
[385881532,1758088247802,-408.21176965,0.00030136,7]
[385881533,1758088247812,-402.76223755,0.00030136,7]
[385881534,1758088247822,-400.0,0.00030136,7]
[385881535,1758088247834,-400.29221246,0.00030136,7]
[385881536,1758088247843,-400.0,0.00030136,7]
[385881537,1758088247852,-409.76532254,0.00030136,7]
[385881538,1758088247862,-400.0,0.00030136,7]
[385881539,1758088247874,-400.0,0.00030136,7]
[385881540,1758088247883,-406.85055041,0.00030136,7]
[385881541,1758088247893,-400.0,0.00030136,7]
[385881542,1758088247904,-400.0,0.00030136,7]
[385881543,1758088247914,-418.27,0.00030136,7]
[385881544,1758088247923,-407.52938307,0.00030136,7]
[385881545,1758088247932,-400.0,0.00030136,7]
[385881546,1758088247941,-501.20951794,0.00030136,7]
[385881547,1758088247950,-405.45641791,0.00030136,7]
[385881548,1758088247959,-459.81,0.00030136,7]
[385881549,1758088247969,-502.12314037,0.00030136,7]
[385881550,1758088247978,-409.33995697,0.00030136,7]
[385881551,1758088247987,-405.10735964,0.00030136,7]
[385881552,1758088247995,-421.59,0.00030136,7]
[385881553,1758088248005,-400.0,0.00030136,7]
[385881554,1758088248014,-405.78455843,0.00030136,7]
[385881555,1758088248023,-517.94,0.00030136,7]
[385881556,1758088248032,-400.0,0.00030136,7]
[385881557,1758088248041,-400.0,0.00030136,7]
[385881558,1758088248051,-400.0,0.00030136,7]
[385881559,1758088248060,-400.0,0.00030136,7]
[385881560,1758088248069,-448.38803213,0.00030136,7]
[385881561,1758088248079,-400.0,0.00030136,7]
[385881562,1758088248088,-462.84,0.00030136,7]
[385881563,1758088248097,-400.0,0.00030136,7]
[385881564,1758088248107,-400.0,0.00030136,7]
[385881565,1758088248116,-402.71035268,0.00030136,7]
[385881566,1758088248126,-408.48032857,0.00030136,7]
[385881567,1758088248136,-405.59054436,0.00030136,7]
[385881568,1758088248145,-188.39119567,0.00030136,7]
[385881576,1758088990933,161.4,0.00014152,2]
[385881577,1758088991146,161.4,0.00015332,2]
[385881578,1758088991351,161.4,0.00016511,2]
[385881579,1758088991770,115.8,0.0001769,2]
[385881580,1758088991798,45.6,0.0001769,2]
[385881581,1758088991970,161.4,0.0001887,2]
[385881583,1758089123059,3833.284,0.00030137,120]
[385881586,1758089166985,151.0,0.0001887,2]
[385881587,1758089180674,500.0,0.000195,5]
[385881588,1758089191038,500.0,0.00019,5]
[385881601,1758089432362,-255.19074273,0.00020049,2]
[385881602,1758089432374,-844.93412054,0.00020049,2]
[385881603,1758089432385,-462.6269725,0.00020049,2]
[385881604,1758089432398,-448.44816423,0.00020049,2]
[385881605,1758089432407,-59.83183577,0.00020049,2]
[385881606,1758089432418,-101.56816423,0.00020049,2]
[385881607,1758089432635,-161.4,0.00021229,2]
[385881608,1758089432645,-300.0,0.00022054,2]
[385881609,1758089432654,-50.75183577,0.00022408,2]
[385881610,1758089432684,-110.64816423,0.00022408,2]
[385881611,1758089432693,-161.4,0.00023587,2]
[385881612,1758089432703,-2267.52903,0.00024313,2]
[385881613,1758089432712,-280.27501742,0.00024435,2]
[385881614,1758089432724,-513.13091038,0.00024435,2]
[385881615,1758089432735,-406.5940722,0.00024435,2]
[385881616,1758089432744,-1.63501742,0.00024436,2]
[385881617,1758089432755,-630.76840408,0.00024436,2]
[385881618,1758089432777,-289.25,0.00024436,2]
[385881619,1758089432788,-1801.6065785,0.00024436,2]
[385881620,1758089432797,-161.4,0.00024767,2]
[385881621,1758089432807,-300.0,0.00024898,2]
[385881622,1758089432816,-500.0,0.00024899,2]
[385881623,1758089432825,-367.5812474,0.00024899,2]
[385881624,1758089432835,-10348.09285771,0.000249,2]
[385881625,1758089432845,-348.35920248,0.00025294,2]
[385881626,1758089432854,-161.4,0.00025946,2]
[385881627,1758089432863,-162.05,0.00026576,2]
[385881628,1758089432872,-1680.0,0.00026607,2]
[385881629,1758089432881,-420.0,0.00026976,2]
[385881630,1758089432890,-161.4,0.00027125,2]
[385881631,1758089432903,-564.0,0.00027137,2]
[385881632,1758089432912,-156.38462727,0.00027397,5]
[385881633,1758089432922,-150.0,0.00027592,7]
[385881634,1758089432931,-150.0,0.00027592,7]
[385881635,1758089432940,-150.0,0.00027592,7]
[385881636,1758089432950,-189.60577027,0.00027592,7]
[385881637,1758089432959,-150.0,0.00027592,7]
[385881638,1758089432968,-150.0,0.00027592,7]
[385881639,1758089432977,-150.0,0.00027592,7]
[385881640,1758089432986,-150.0,0.00027592,7]
[385881641,1758089432995,-150.0,0.00027592,7]
[385881642,1758089433004,-228.6129959,0.00027592,7]
[385881643,1758089433014,-150.0,0.00027592,7]
[385881644,1758089433023,-150.0,0.00027592,7]
[385881645,1758089433034,-2049.2,0.00027645,2]
[385881646,1758089433043,-2638.50597447,0.00027647,2]
[385881647,1758089437708,-926.79015405,0.00027647,2]
[385881648,1758089437728,-700.36387148,0.00027647,2]
[385881649,1758089437743,-200.0,0.00027652,2]
[385881650,1758089437754,-279.33,0.00027684,2]
[385881651,1758089437764,-1107.0,0.00027782,2]
[385881652,1758089437773,-9369.52697584,0.00027783,2]
[385881653,1758089437788,-3367.20001826,0.00027783,2]
[385881654,1758089437818,-2248.15,0.00027783,2]
[385881655,1758089437829,-515.71559737,0.00027783,2]
[385881656,1758089437840,-2322.30999241,0.00027783,2]
[385881657,1758089437851,-635.28741612,0.00027783,2]
[385881658,1758089437860,-250.75,0.0002796,2]
[385881659,1758089437870,-666.0,0.00028106,3]
[385881660,1758089437879,-283.91,0.00028106,2]
[385881661,1758089437889,-280.66,0.00028195,2]
[385881662,1758089437899,-161.4,0.00028305,2]
[385881663,1758089437908,-150.0,0.0002836,7]
[385881664,1758089437918,-200.06,0.00028697,2]
[385881665,1758089437928,-279.33,0.00028722,2]
[385881666,1758089437938,-250.0,0.00028726,2]
[385881667,1758089437947,-3945.5,0.00028771,2]
[385881668,1758089437957,-162.47,0.00028773,30]
[385881669,1758089437966,-202.45,0.00028824,2]
[385881670,1758089437976,-2935.34,0.00028864,2]
[385881671,1758089437985,-150.0,0.00028869,2]
[385881672,1758089437994,-2351.0,0.00028972,2]
[385881674,1758089438004,-600.0,0.00028983,2]
[385881676,1758089438013,-500.0,0.00028983,2]
[385881678,1758089438023,-518.46513606,0.00028983,2]
[385881680,1758089438032,-151.0,0.00028983,2]
[385881683,1758089438041,-151.0,0.00028983,2]
[385881685,1758089438051,-151.0,0.00028983,2]
[385881687,1758089438060,-151.0,0.00028983,2]